Workbook

Sheet Cover Page
D7: Australian Pork Solar PV and Thermal Tool
D8: © All Energy Pty Ltd, 2022
E10: Dramatically rising costs of grid power mean that pork agribusinesses need innovative energy solutions. All Energy Pty Ltd has created this tool to assess the feasibility of solar photovoltaic (PV) arrays at your business, reducing costs and ensuring your future energy supply security.
E12: Before using this tool, you will need a copy of a current power bill showing volume [$/kWh] charges and a gas bill showing volume [$/MJ, $/L etc] charges

Sheet Egg Tool v1 (hidden)
P2: $/kWh | Q2: $/kVA | R2: kWh/kW/day | S2: Array kW | T2: STC value
O3: Adelaide | P3: 0.19 | Q3: 0 | R3: 4.2 | S3: =$P$17/R3 -> 200 | T3: =1.3753*$K$27*$P$20*P19 -> 112554.552
O4: Alice Springs | P4: 0.2 | Q4: 0 | R4: 5 | S4: =$P$17/R4 -> 168 | T4: =1.6143*$K$27*$P$20*P19 -> 132114.312
J5: Australian Eggs Solar PV Tool | O5: Brisbane | P5: 0.11 | Q5: 0.27 | R5: 4.2 | S5: 200 | T5: =1.3753*$K$27*$P$20*P19 -> 112554.552
J6: © All Energy Pty Ltd, 2019 | O6: Cairns | P6: 0.14 | Q6: 0.99 | R6: 4.2 | S6: 200 | T6: =1.3753*$K$27*$P$20*P19 -> 112554.552
J7: Input Farm Information | O7: Canberra | P7: 0.21 | Q7: 0.14 | R7: 4.3 | S7: 195.3488372 | T7: =1.3753*$K$27*$P$20*P19 -> 112554.552
O8: Darwin | P8: 0.2 | Q8: 0 | R8: 4.4 | S8: 190.9090909 | T8: =1.5288*$K$27*$P$20*P19 -> 125116.992
J9: Number of Sheds at My Farm | K9: 8 | O9: Hobart | P9: 0.16 | Q9: 0.42 | R9: 3.5 | S9: 240 | T9: =1.1769*$K$27*$P$20*P19 -> 96317.496
O10: Melbourne | P10: 0.04 | Q10: 0.3 | R10: 3.6 | S10: 233.3333333 | T10: =1.1769*$K$27*$P$20*P19 -> 96317.496
J11: Shed Length [m] | K11: 120 | O11: Perth | P11: 0.21 | Q11: 1.45 | R11: 4.4 | S11: 190.9090909 | T11: =1.3753*$K$27*$P$20*P19 -> 112554.552
O12: Sydney | P12: 0.05 | Q12: 0.34 | R12: 3.9 | S12: 215.3846154 | T12: =1.3753*$K$27*$P$20*P19 -> 112554.552
J13: Shed Width [m] | K13: 30
J15: I Want to Offset What % of My kWh with Solar PV | K15: 0.3 | O15: Intermediate Calculations
O16: Daily kWh | P16: =350*K9 -> 2800
J17: Interest in Batteries | K17: No Battery | O17: Array kWh | P17: =P16*K15 -> 840
J19: My Farm is Closest to | K19: Brisbane | O19: STC Value | P19: 34.1
O20: Deeming Period | P20: 12
J21: Power Volume Price [$/kWh] | K21: =VLOOKUP(K19,O3:T12,2,FALSE) -> 0.11
O22: LGC Value | P22: 46.075
J23: Power Demand Price [$/kVA/day or $/kW/day] | K23: =VLOOKUP(K19,O3:T12,3,FALSE) -> 0.27
J25: System Design
J27: Solar Array Rating [kW] | K27: =VLOOKUP(K19,O3:S12,5,FALSE) -> 200
J29: Battery Rating [kWh] | K29: =IF(K17="Peak Shaving",K9/8*50*2,0) -> 0
J31: Roof Area Covered by Solar Array [% of 1 Shed] | K31: =(K27*1.712976/0.33)/(K11*K13) -> 0.288379798
J33: Cost Benefit Analysis
J35: Capital Cost | K35: =IF(K27<100,2139.6*K27^0.9409+2055.4*K29^0.7763-VLOOKUP(K19,O3:T12,6,FALSE),2139.6*K27^0.9409+2055.4*K29^0.7763) -> 312875.612
J37: Savings per Annum | K37: =P17*365*K21*0.85+K29*365*0.85*K21+K9/8*50*K23*365*0.85+IF(K27>=100,P17/1000*365*P22,0) -> 46982.07
J39: Simple Payback [years] | K39: =K35/K37 -> 6.659468432

Sheet Pork Tool
J2: $/kWh | K2: $/kVA/day | L2: kWh/kW/day | M2: Array kW | N2: STC value | P2: $/GJ
I3: Adelaide | J3: 0.19 | K3: 0 | L3: 4.2 | M3: =$J$22/L3 -> 17.31898239 | N3: =1.3753*$E$49*$J$24*J23 -> 9289.330626 | O3: 0.93 | P3: 15
I4: Alice Springs | J4: 0.2 | K4: 0 | L4: 5 | M4: =$J$22/L4 -> 14.54794521 | N4: =1.6143*$E$49*$J$24*J23 -> 10903.63297 | O4: 0.78 | P4: 30
D5: Australian Pork Solar PV and Solar Thermal Tool | I5: Brisbane | J5: 0.11 | K5: 0.27 | L5: 4.2 | M5: 17.31898239 | N5: =1.3753*$E$49*$J$24*J23 -> 9289.330626 | O5: 0.93 | P5: 20
D6: © All Energy Pty Ltd, 2021 | I6: Cairns | J6: 0.14 | K6: 0.99 | L6: 4.2 | M6: 17.31898239 | N6: =1.3753*$E$49*$J$24*J23 -> 9289.330626 | O6: 0.93 | P6: 25
I7: Canberra | J7: 0.21 | K7: 0.14 | L7: 4.3 | M7: 16.91621536 | N7: =1.3753*$E$49*$J$24*J23 -> 9289.330626 | O7: 0.91 | P7: 15
D8: PRODUCT DISCLAIMER: While all possible care has gone into ensuring that the below techincal and cost figures are as accurate as possible, the below calculator and accompanying checklist should be used as a guidance tool only and not relied on as a sole source of information for making a business decision. | I8: Darwin | J8: 0.2 | K8: 0 | L8: 4.4 | M8: 16.53175592 | N8: =1.5288*$E$49*$J$24*J23 -> 10326.13151 | O8: 0.89 | P8: 20
I9: Hobart | J9: 0.16 | K9: 0.42 | L9: 3.5 | M9: 20.78277886 | N9: =1.1769*$E$49*$J$24*J23 -> 7949.257045 | O9: 1.11 | P9: 20
D10: My Farm Information | I10: Melbourne | J10: 0.04 | K10: 0.3 | L10: 3.6 | M10: 20.20547945 | N10: =1.1769*$E$49*$J$24*J23 -> 7949.257045 | O10: 1.08 | P10: 15
I11: Perth | J11: 0.21 | K11: 1.45 | L11: 4.4 | M11: 16.53175592 | N11: =1.3753*$E$49*$J$24*J23 -> 9289.330626 | O11: 0.89 | P11: 20
D12: Farrow to Wean or Finish | E12: Wean to Finish | I12: Sydney | J12: 0.05 | K12: 0.34 | L12: 3.9 | M12: 18.6512118 | N12: =1.3753*$E$49*$J$24*J23 -> 9289.330626 | O12: 1 | P12: 15
D14: Pigs Raised per Year | E14: 15000 | I14: Intermediate Calculations | L14: Elec kWh | M14: Heating
I15: Farrow to Finish | J15: 20.4 | K15: kWh/pig/yr total | L15: =J15*$E$14/365*0.51+J15*$E$19*$E$14*0.49/365 -> 838.3561644 | M15: =M21*E14/365 -> 410.7945205
D16: My Farm is Closest to | E16: Brisbane | I16: Farrow to Wean | J16: 14.5 | L16: =J16*$E$14/365*0.31+J16*$E$19*$E$14*0.69/365 -> 595.890411 | M16: =M15 -> 410.7945205
I17: Wean to Finish | J17: =J15-J16 -> 5.9 | L17: =L15-L16 -> 242.4657534 | M17: 0
D18: Heating Done By | I18: Pigs per litter | J18: 12
D19: Electricity | E19: 1 | I19: Breed+Gestation+Raising | J19: 10 | K19: months
D20: Gas | E20: 0.1 | I20: Litters per year | J20: =12/J19 -> 1.2
M21: =J15*0.49 -> 9.996 | N21: for heating
D22: Electricity Currently Supplied By | I22: Array kWh | J22: =E29*E35 -> 72.73972603
D23: Grid | E23: 1 | I23: STC Value | J23: 39
D24: Solar | E24: 0.2 | I24: Deeming Period | J24: 10
D25: Diesel Generator | E25: 0.1 | I25: LGC Value -5% handling | J25: =40.4*0.95 -> 38.38 | M25: https://www.demandmanager.com.au/certificate-prices/ | N25: Accessed 17/11/2021
D27: Energy Calculations | I27: Equivalent power price | J27: =E23*E38+E24*0.04+E25*E44/36*1000/277.78/0.3 -> 0.1513330667 | K27: $/kWh
I28: Equivalent heating price | J28: =E19*J27*277.78+E20*E41 -> 44.23729926 | K28: $/GJ
D29: Daily kWh Consumption - Electrical | E29: =VLOOKUP(E12,I15:L17,4,0) -> 242.4657534
D30: Note that this number is likely to vary +/- 25% between Winter and Summer. The above is an average figure for the whole year
D32: Daily kWh Consumption - Heating | E32: 3
D33: Note that if heating is done by heat lamps, the above number is a part of the daily electrical kWh consumption i.e. the two above numbers are not added together
D35: I Want to Offset Electricity Usage [kWh] at My Farm by: | E35: 0.3
D36: Note that without a battery, the offsettable kWh will be limited by % of usage during the day (i.e. pumping, ventilation, lighting, and daytime heating) - typically ~30%
D38: Power Volume Price [$/kWh] | E38: =VLOOKUP(E16,I3:P12,2,FALSE) -> 0.11
D39: Above number is assumed based on your location and can be overwritten - refer to your power bill (use peak $/kWh if charged a time-of-use tariff)
D41: Gas Price [$/GJ] | E41: 22
D42: Above number is assumed and can be overwritten - refer to your gas bill (you may need to convert units, if so, multiply by 40.98 for LPG charged $/L or 1000 for natural gas charged $/MJ)
D44: Diesel Price [$/L] | E44: =IF(E25>0,1,0) -> 1
D45: This is the price you pay per litre minus the ATO off road rebate of 43.3 c/L
D47: PV Solar System Design
D49: Solar Array Rating [kWp] | E49: =VLOOKUP(E16,I3:M12,5,FALSE) -> 17.31898239
D51: Solar Thermal System Design
D53: Solar Thermal Array [kWt] | E53: =(E32*365/277.78)/6.57*1.2*VLOOKUP(E16,I3:O12,7,FALSE) -> 0.6695946432
D55: Cost Benefit Analysis
D57: Ground Mounted Solar
D58: Capital Cost | E58: =IF(E49<100,1660*E49^0.95+220*E49,1660*E49^0.95+220*E49) -> 28739.14642
D59: Savings per Annum | E59: =J22*365*J27+IF(E49>=100,J22*J25/1000*365,0) -> 4017.89292
D60: Simple Payback [years] | E60: =E58/E59 -> 7.152790527
D62: Roof Mounted Solar
D63: Capital Cost | E63: =IF(E49<100,960*E49^0.95+220*E49,960*E49^0.95+220*E49) -> 18226.93003
D64: Savings per Annum | E64: =E59 -> 4017.89292
D65: Simple Payback [years] | E65: =E63/E64 -> 4.536439968
D67: Solar Thermal
D68: Capital Cost | E68: =(E53/800)^0.7*249007 -> 1746.292322
D69: Savings per Annum | E69: =IF(E18="Gas",E32*365/277.78*J28,E32*365*J27) -> 165.709708
D70: Simple Payback [years] | E70: =E68/E69 -> 10.53826202
